[Event "Titled Tuesday Blitz August 08 Late 2023"]
[White "Kozusek, Daniel"]
[Black "Skvortsov, Andrei"]
[WhiteFideId "349500"]
[BlackFideId "24108600"]
[WhiteElo "2517"]
[BlackElo "2702"]
[Result "1-0"]
[Round "6"]
[TimeControl "180+1"]
[Date "2023.08.08"]
[WhiteClock "0:00:48"]
[BlackClock "0:01:16"]
[Board "54"]

1. d4 {[%clk 0:03:00]}  g6 {[%clk 0:02:59]} 2. c4 {[%clk 0:02:59]}  Bg7 {[%clk 0:02:59]} 3. Nf3 {[%clk 0:03:00]}  e6 {[%clk 0:02:59]} 4. Nc3 {[%clk 0:02:59]}  Ne7 {[%clk 0:03:00]} 5. e4 {[%clk 0:02:59]}  d5 {[%clk 0:03:00]} 6. cxd5 {[%clk 0:02:59]}  exd5 {[%clk 0:03:01]} 7. e5 {[%clk 0:02:59]}  Nd7 {[%clk 0:03:01]} 8. h4 {[%clk 0:02:57]}  f6 {[%clk 0:03:01]} 9. e6 {[%clk 0:02:36]}  Nf8 {[%clk 0:03:00]} 10. h5 {[%clk 0:02:37]}  Nxe6 {[%clk 0:02:56]} 11. h6 {[%clk 0:02:34]}  Bf8 {[%clk 0:02:53]} 12. Bd3 {[%clk 0:02:34]}  c6 {[%clk 0:02:52]} 13. Qe2 {[%clk 0:02:29]}  Qb6 {[%clk 0:02:49]} 14. Be3 {[%clk 0:02:25]}  Bd7 {[%clk 0:02:47]} 15. O-O-O {[%clk 0:02:24]}  O-O-O {[%clk 0:02:41]} 16. Kb1 {[%clk 0:02:24]}  Qc7 {[%clk 0:02:24]} 17. Rc1 {[%clk 0:02:24]}  Kb8 {[%clk 0:02:17]} 18. Qd2 {[%clk 0:01:48]}  Qb6 {[%clk 0:02:12]} 19. Na4 {[%clk 0:01:48]}  Qc7 {[%clk 0:02:11]} 20. Nc5 {[%clk 0:01:49]}  Nc8 {[%clk 0:02:06]} 21. Rhe1 {[%clk 0:01:33]}  Bxc5 {[%clk 0:01:58]} 22. dxc5 {[%clk 0:01:33]}  Ka8 {[%clk 0:01:54]} 23. Nd4 {[%clk 0:01:31]}  Rhe8 {[%clk 0:01:49]} 24. Qc3 {[%clk 0:01:14]}  Ne7 {[%clk 0:01:43]} 25. Nxe6 {[%clk 0:01:13]}  Bxe6 {[%clk 0:01:44]} 26. Bd4 {[%clk 0:01:12]}  Ng8 {[%clk 0:01:29]} 27. Bxf6 {[%clk 0:01:06]}  Rc8 {[%clk 0:01:26]} 28. Be5 {[%clk 0:01:03]}  Qf7 {[%clk 0:01:25]} 29. Qa5 {[%clk 0:00:54]}  Nxh6 {[%clk 0:01:22]} 30. Rc3 {[%clk 0:00:49]}  Bf5 {[%clk 0:01:16]} 31. Qxa7+ {[%clk 0:00:48]} 1-0


[Site "https://www.chess.com"]

[Event "Titled Tuesday Blitz August 08 Late 2023"]
[White "Fiorito, Joaquin"]
[Black "Ibadov, Dashgyn"]
[WhiteFideId "180173"]
[BlackFideId "24107514"]
[WhiteElo "2700"]
[BlackElo "2513"]
[Result "1-0"]
[Round "6"]
[TimeControl "180+1"]
[Date "2023.08.08"]
[WhiteClock "0:01:51"]
[BlackClock "0:01:13"]
[Board "55"]

1. d4 {[%clk 0:03:00]}  Nf6 {[%clk 0:02:58]} 2. c4 {[%clk 0:03:01]}  c5 {[%clk 0:02:59]} 3. d5 {[%clk 0:03:01]}  d6 {[%clk 0:03:00]} 4. Nc3 {[%clk 0:03:01]}  g6 {[%clk 0:03:00]} 5. e4 {[%clk 0:03:02]}  Bg7 {[%clk 0:03:01]} 6. Nf3 {[%clk 0:03:01]}  O-O {[%clk 0:03:02]} 7. h3 {[%clk 0:03:01]}  e6 {[%clk 0:03:02]} 8. Bd3 {[%clk 0:03:02]}  exd5 {[%clk 0:03:02]} 9. exd5 {[%clk 0:03:03]}  Re8+ {[%clk 0:03:03]} 10. Be3 {[%clk 0:03:03]}  Rxe3+ {[%clk 0:03:03]} 11. fxe3 {[%clk 0:03:03]}  Qe7 {[%clk 0:03:04]} 12. O-O {[%clk 0:03:01]}  Nbd7 {[%clk 0:03:05]} 13. Qd2 {[%clk 0:03:01]}  Nh5 {[%clk 0:03:05]} 14. Rae1 {[%clk 0:02:49]}  Ng3 {[%clk 0:03:04]} 15. Rf2 {[%clk 0:02:49]}  Ne5 {[%clk 0:03:03]} 16. Nxe5 {[%clk 0:02:47]}  Bxe5 {[%clk 0:03:02]} 17. Rf4 {[%clk 0:02:26]}  Bd7 {[%clk 0:02:39]} 18. Qf2 {[%clk 0:02:23]}  Bxf4 {[%clk 0:02:03]} 19. exf4 {[%clk 0:02:21]}  Qh4 {[%clk 0:02:04]} 20. Ne4 {[%clk 0:02:14]}  Nf5 {[%clk 0:01:56]} 21. Qxh4 {[%clk 0:02:14]}  Nxh4 {[%clk 0:01:57]} 22. Nf6+ {[%clk 0:02:14]}  Kg7 {[%clk 0:01:52]} 23. Nxd7 {[%clk 0:02:14]}  Rd8 {[%clk 0:01:53]} 24. Re7 {[%clk 0:02:09]}  h6 {[%clk 0:01:32]} 25. Kf2 {[%clk 0:02:07]}  g5 {[%clk 0:01:32]} 26. f5 {[%clk 0:01:53]}  Kg8 {[%clk 0:01:13]} 27. g3 {[%clk 0:01:51]} 1-0


[Site "https://www.chess.com"]

[Event "Titled Tuesday Blitz August 08 Late 2023"]
[White "Grinev, Valeriy"]
[Black "Sokolovsky, Yahli"]
[WhiteFideId "14117517"]
[BlackFideId "2820242"]
[WhiteElo "2509"]
[BlackElo "2694"]
[Result "0-1"]
[Round "6"]
[TimeControl "180+1"]
[Date "2023.08.08"]
[WhiteClock "0:01:14"]
[BlackClock "0:00:12"]
[Board "57"]

1. e4 {[%clk 0:02:58]}  d6 {[%clk 0:02:59]} 2. d4 {[%clk 0:02:57]}  g6 {[%clk 0:03:00]} 3. f3 {[%clk 0:02:57]}  Bg7 {[%clk 0:03:00]} 4. c4 {[%clk 0:02:57]}  Nf6 {[%clk 0:02:56]} 5. Be3 {[%clk 0:02:56]}  Nc6 {[%clk 0:02:54]} 6. Qd2 {[%clk 0:02:56]}  e5 {[%clk 0:02:54]} 7. d5 {[%clk 0:02:54]}  Nd4 {[%clk 0:02:53]} 8. Ne2 {[%clk 0:02:55]}  c5 {[%clk 0:02:52]} 9. dxc6 {[%clk 0:02:54]}  Nxc6 {[%clk 0:02:49]} 10. Nbc3 {[%clk 0:02:53]}  O-O {[%clk 0:02:40]} 11. O-O-O {[%clk 0:02:51]}  Qa5 {[%clk 0:02:40]} 12. Qxd6 {[%clk 0:02:42]}  Be6 {[%clk 0:02:40]} 13. Ng3 {[%clk 0:02:23]}  Nd4 {[%clk 0:02:35]} 14. Kb1 {[%clk 0:02:07]}  Rfd8 {[%clk 0:01:46]} 15. Qa3 {[%clk 0:02:02]}  Qxa3 {[%clk 0:01:46]} 16. bxa3 {[%clk 0:02:03]}  Bf8 {[%clk 0:01:33]} 17. Kb2 {[%clk 0:02:00]}  Rac8 {[%clk 0:01:32]} 18. Nd5 {[%clk 0:01:59]}  Bxd5 {[%clk 0:00:48]} 19. exd5 {[%clk 0:02:00]}  b5 {[%clk 0:00:48]} 20. Bxd4 {[%clk 0:01:50]}  exd4 {[%clk 0:00:49]} 21. cxb5 {[%clk 0:01:48]}  Nxd5 {[%clk 0:00:44]} 22. Bd3 {[%clk 0:01:44]}  Nf4 {[%clk 0:00:30]} 23. Rd2 {[%clk 0:01:36]}  Rc3 {[%clk 0:00:16]} 24. Rhd1 {[%clk 0:01:37]}  Bxa3+ {[%clk 0:00:14]} 25. Kb1 {[%clk 0:01:38]}  Rdc8 {[%clk 0:00:11]} 26. Rc2 {[%clk 0:01:26]}  Nxd3 {[%clk 0:00:09]} 27. Rxc3 {[%clk 0:01:23]}  Rxc3 {[%clk 0:00:10]} 28. Ne4 {[%clk 0:01:22]}  Rc8 {[%clk 0:00:09]} 29. Nd2 {[%clk 0:01:17]}  Nf2 {[%clk 0:00:09]} 30. Nb3 {[%clk 0:01:18]}  Nxd1 {[%clk 0:00:08]} 31. Nxd4 {[%clk 0:01:17]}  Nc3+ {[%clk 0:00:08]} 32. Kc2 {[%clk 0:01:16]}  Nxb5+ {[%clk 0:00:08]} 33. Kd3 {[%clk 0:01:16]}  Nxd4 {[%clk 0:00:09]} 34. Kxd4 {[%clk 0:01:17]}  Rc2 {[%clk 0:00:09]} 35. g4 {[%clk 0:01:17]}  Rxa2 {[%clk 0:00:09]} 36. h3 {[%clk 0:01:18]}  Rh2 {[%clk 0:00:10]} 37. Ke4 {[%clk 0:01:18]}  Rxh3 {[%clk 0:00:10]} 38. g5 {[%clk 0:01:19]}  Rg3 {[%clk 0:00:10]} 39. Kf4 {[%clk 0:01:19]}  Rg2 {[%clk 0:00:11]} 40. Ke4 {[%clk 0:01:19]}  Rxg5 {[%clk 0:00:12]} 41. f4 {[%clk 0:01:14]}  Rf5 {[%clk 0:00:12]} 0-1


[Site "https://www.chess.com"]

[Event "Titled Tuesday Blitz August 08 Late 2023"]
[White "Remolar Gallen, Jose"]
[Black "MKlose11"]
[WhiteFideId "2215187"]
[WhiteElo "2504"]
[BlackElo "2663"]
[Result "0-1"]
[Round "6"]
[TimeControl "180+1"]
[Date "2023.08.08"]
[WhiteClock "0:00:00"]
[BlackClock "0:00:52"]
[Board "59"]

1. e4 {[%clk 0:02:58]}  e6 {[%clk 0:02:59]} 2. d4 {[%clk 0:02:58]}  d5 {[%clk 0:02:58]} 3. e5 {[%clk 0:02:58]}  c5 {[%clk 0:02:57]} 4. c3 {[%clk 0:02:59]}  Nc6 {[%clk 0:02:58]} 5. Nf3 {[%clk 0:02:58]}  Bd7 {[%clk 0:02:58]} 6. Be2 {[%clk 0:02:54]}  Qb6 {[%clk 0:02:58]} 7. a3 {[%clk 0:02:52]}  Nh6 {[%clk 0:02:51]} 8. b4 {[%clk 0:02:50]}  cxd4 {[%clk 0:02:50]} 9. cxd4 {[%clk 0:02:50]}  Nf5 {[%clk 0:02:51]} 10. Bb2 {[%clk 0:02:50]}  Na5 {[%clk 0:02:51]} 11. g4 {[%clk 0:02:34]}  Nh6 {[%clk 0:02:45]} 12. Nfd2 {[%clk 0:02:28]}  Rc8 {[%clk 0:02:42]} 13. Bc3 {[%clk 0:02:20]}  Nc4 {[%clk 0:02:42]} 14. Nxc4 {[%clk 0:02:17]}  dxc4 {[%clk 0:02:43]} 15. Nd2 {[%clk 0:02:18]}  Qc6 {[%clk 0:02:26]} 16. Bf3 {[%clk 0:02:11]}  Qc7 {[%clk 0:02:26]} 17. Qe2 {[%clk 0:02:06]}  Bc6 {[%clk 0:02:19]} 18. Ne4 {[%clk 0:01:38]}  Bd5 {[%clk 0:02:10]} 19. Rc1 {[%clk 0:01:35]}  b5 {[%clk 0:02:09]} 20. h4 {[%clk 0:01:19]}  Be7 {[%clk 0:02:06]} 21. Bd2 {[%clk 0:01:14]}  Qc6 {[%clk 0:02:01]} 22. Rc3 {[%clk 0:01:02]}  Nxg4 {[%clk 0:01:56]} 23. Rg1 {[%clk 0:00:49]}  h5 {[%clk 0:01:55]} 24. Bg5 {[%clk 0:00:29]}  Bxg5 {[%clk 0:01:51]} 25. Nd6+ {[%clk 0:00:21]}  Kd7 {[%clk 0:01:44]} 26. hxg5 {[%clk 0:00:21]}  Rcf8 {[%clk 0:01:31]} 27. Rg3 {[%clk 0:00:11]}  Nh2 {[%clk 0:01:18]} 28. Bxd5 {[%clk 0:00:03]}  Qxd5 {[%clk 0:01:18]} 29. Kd2 {[%clk 0:00:01]}  h4 {[%clk 0:01:14]} 30. Rh3 {[%clk 0:00:01]}  Qg2 {[%clk 0:01:10]} 31. a4 {[%clk 0:00:01]}  Nf1+ {[%clk 0:00:56]} 32. Kc2 {[%clk 0:00:02]}  a6 {[%clk 0:00:54]} 33. axb5 {[%clk 0:00:02]}  axb5 {[%clk 0:00:55]} 34. Nxb5 {[%clk 0:00:02]}  Ra8 {[%clk 0:00:53]} 35. d5 {[%clk 0:00:02]}  Ra2+ {[%clk 0:00:52]} 36. Kb1 {[%clk 0:00:02]}  Rxe2 {[%clk 0:00:53]} 37. dxe6+ {[%clk 0:00:00]}  fxe6 {[%clk 0:00:52]} 0-1


[Site "https://www.chess.com"]

[Event "Titled Tuesday Blitz August 08 Late 2023"]
[White "Hua, Lefong"]
[Black "Sadilek, Peter"]
[WhiteFideId "2602253"]
[BlackFideId "1616439"]
[WhiteElo "2646"]
[BlackElo "2487"]
[Result "1-0"]
[Round "6"]
[TimeControl "180+1"]
[Date "2023.08.08"]
[WhiteClock "0:02:01"]
[BlackClock "0:00:41"]
[Board "63"]

1. d4 {[%clk 0:03:00]}  d5 {[%clk 0:02:52]} 2. c4 {[%clk 0:03:00]}  dxc4 {[%clk 0:02:53]} 3. Nf3 {[%clk 0:02:57]}  Nf6 {[%clk 0:02:52]} 4. e3 {[%clk 0:02:57]}  e6 {[%clk 0:02:52]} 5. Bxc4 {[%clk 0:02:57]}  c5 {[%clk 0:02:53]} 6. O-O {[%clk 0:02:57]}  cxd4 {[%clk 0:02:54]} 7. exd4 {[%clk 0:02:57]}  Be7 {[%clk 0:02:54]} 8. Nc3 {[%clk 0:02:56]}  O-O {[%clk 0:02:55]} 9. Bg5 {[%clk 0:02:56]}  a6 {[%clk 0:02:37]} 10. Bb3 {[%clk 0:02:56]}  Nc6 {[%clk 0:02:28]} 11. Re1 {[%clk 0:02:55]}  h6 {[%clk 0:02:26]} 12. Bh4 {[%clk 0:02:53]}  Nb4 {[%clk 0:02:14]} 13. a3 {[%clk 0:02:50]}  Nbd5 {[%clk 0:02:10]} 14. Bc2 {[%clk 0:02:50]}  Bd7 {[%clk 0:01:36]} 15. Ne5 {[%clk 0:02:44]}  Rc8 {[%clk 0:01:21]} 16. Qd3 {[%clk 0:02:37]}  Nf4 {[%clk 0:01:21]} 17. Qf3 {[%clk 0:02:34]}  N6d5 {[%clk 0:01:02]} 18. Nxd7 {[%clk 0:02:18]}  Qxd7 {[%clk 0:00:56]} 19. Bxe7 {[%clk 0:02:09]}  Qxe7 {[%clk 0:00:56]} 20. Qe4 {[%clk 0:02:04]}  f5 {[%clk 0:00:46]} 21. Qf3 {[%clk 0:02:04]}  Nxc3 {[%clk 0:00:43]} 22. bxc3 {[%clk 0:02:04]}  Nd5 {[%clk 0:00:41]} 23. Qxd5 {[%clk 0:02:01]} 1-0


[Site "https://www.chess.com"]

[Event "Titled Tuesday Blitz August 08 Late 2023"]
[White "Zeman, Matyas"]
[Black "Wieczorek, Oskar"]
[WhiteFideId "364398"]
[BlackFideId "1133950"]
[WhiteElo "2487"]
[BlackElo "2643"]
[Result "1-0"]
[Round "6"]
[TimeControl "180+1"]
[Date "2023.08.08"]
[WhiteClock "0:00:05"]
[BlackClock "0:00:00"]
[Board "64"]

1. d4 {[%clk 0:03:00]}  Nf6 {[%clk 0:02:59]} 2. Nf3 {[%clk 0:03:00]}  c5 {[%clk 0:02:58]} 3. d5 {[%clk 0:03:00]}  g6 {[%clk 0:02:58]} 4. Nc3 {[%clk 0:02:58]}  Bg7 {[%clk 0:02:58]} 5. e4 {[%clk 0:02:58]}  d6 {[%clk 0:02:59]} 6. Bb5+ {[%clk 0:02:57]}  Nfd7 {[%clk 0:02:59]} 7. a4 {[%clk 0:02:56]}  Na6 {[%clk 0:02:59]} 8. O-O {[%clk 0:02:55]}  Nc7 {[%clk 0:02:59]} 9. Be2 {[%clk 0:02:54]}  O-O {[%clk 0:02:58]} 10. Be3 {[%clk 0:02:51]}  Rb8 {[%clk 0:02:50]} 11. Nd2 {[%clk 0:02:50]}  b6 {[%clk 0:02:45]} 12. Nc4 {[%clk 0:02:50]}  a6 {[%clk 0:02:44]} 13. Ra2 {[%clk 0:02:48]}  Ne5 {[%clk 0:02:12]} 14. Nxe5 {[%clk 0:02:45]}  Bxe5 {[%clk 0:02:12]} 15. Qd2 {[%clk 0:02:45]}  b5 {[%clk 0:02:10]} 16. axb5 {[%clk 0:02:44]}  axb5 {[%clk 0:02:11]} 17. Rfa1 {[%clk 0:02:39]}  b4 {[%clk 0:02:06]} 18. Nd1 {[%clk 0:02:23]}  e6 {[%clk 0:01:48]} 19. Bg5 {[%clk 0:01:42]}  f6 {[%clk 0:01:40]} 20. Bh6 {[%clk 0:01:38]}  Rf7 {[%clk 0:01:35]} 21. Ne3 {[%clk 0:01:37]}  f5 {[%clk 0:01:30]} 22. Nc4 {[%clk 0:01:34]}  Bd4 {[%clk 0:01:13]} 23. c3 {[%clk 0:01:32]}  bxc3 {[%clk 0:01:14]} 24. bxc3 {[%clk 0:01:33]}  Bxf2+ {[%clk 0:01:15]} 25. Kxf2 {[%clk 0:01:31]}  fxe4+ {[%clk 0:01:16]} 26. Kg1 {[%clk 0:01:25]}  exd5 {[%clk 0:01:17]} 27. Ne3 {[%clk 0:01:19]}  Be6 {[%clk 0:01:17]} 28. Bg4 {[%clk 0:00:57]}  Qf6 {[%clk 0:01:04]} 29. Bxe6 {[%clk 0:00:37]}  Qxe6 {[%clk 0:01:05]} 30. Ra7 {[%clk 0:00:34]}  g5 {[%clk 0:00:29]} 31. Bxg5 {[%clk 0:00:33]}  Rbf8 {[%clk 0:00:25]} 32. Rxc7 {[%clk 0:00:28]}  Rxc7 {[%clk 0:00:26]} 33. Nxd5 {[%clk 0:00:28]}  Rcf7 {[%clk 0:00:16]} 34. Be3 {[%clk 0:00:28]}  Rf5 {[%clk 0:00:11]} 35. c4 {[%clk 0:00:27]}  h5 {[%clk 0:00:09]} 36. h3 {[%clk 0:00:24]}  R5f7 {[%clk 0:00:06]} 37. Qe2 {[%clk 0:00:20]}  Qe5 {[%clk 0:00:03]} 38. Rd1 {[%clk 0:00:08]}  Rg7 {[%clk 0:00:03]} 39. Bh6 {[%clk 0:00:06]}  Rf3 {[%clk 0:00:01]} 40. Bxg7 {[%clk 0:00:05]}  Rg3 {[%clk 0:00:00]} 41. Bxe5 {[%clk 0:00:05]} 1-0


[Site "https://www.chess.com"]

[Event "Titled Tuesday Blitz August 08 Late 2023"]
[White "Domingo Nunez, Ruben"]
[Black "ChessSG1"]
[WhiteFideId "22245570"]
[WhiteElo "2630"]
[BlackElo "2482"]
[Result "1-0"]
[Round "6"]
[TimeControl "180+1"]
[Date "2023.08.08"]
[WhiteClock "0:02:01"]
[BlackClock "0:00:00"]
[Board "65"]

1. b3 {[%clk 0:03:00]}  d5 {[%clk 0:02:58]} 2. Bb2 {[%clk 0:03:00]}  c5 {[%clk 0:02:59]} 3. Nf3 {[%clk 0:03:00]}  f6 {[%clk 0:02:56]} 4. e3 {[%clk 0:03:00]}  e5 {[%clk 0:02:56]} 5. Bb5+ {[%clk 0:03:00]}  Nc6 {[%clk 0:02:35]} 6. c4 {[%clk 0:02:58]}  d4 {[%clk 0:02:34]} 7. exd4 {[%clk 0:02:57]}  cxd4 {[%clk 0:02:32]} 8. O-O {[%clk 0:02:55]}  Bc5 {[%clk 0:02:27]} 9. d3 {[%clk 0:02:54]}  Ne7 {[%clk 0:02:27]} 10. Nbd2 {[%clk 0:02:54]}  Bf5 {[%clk 0:02:21]} 11. Qe2 {[%clk 0:02:52]}  O-O {[%clk 0:02:00]} 12. a3 {[%clk 0:02:51]}  a6 {[%clk 0:01:50]} 13. Ba4 {[%clk 0:02:51]}  Rb8 {[%clk 0:01:34]} 14. b4 {[%clk 0:02:51]}  b5 {[%clk 0:01:34]} 15. Bb3 {[%clk 0:02:51]}  Kh8 {[%clk 0:01:08]} 16. bxc5 {[%clk 0:02:35]}  bxc4 {[%clk 0:01:07]} 17. dxc4 {[%clk 0:02:36]}  Na5 {[%clk 0:00:56]} 18. Qd1 {[%clk 0:02:27]}  Bd3 {[%clk 0:00:49]} 19. Re1 {[%clk 0:02:24]}  Nxb3 {[%clk 0:00:42]} 20. Nxb3 {[%clk 0:02:24]}  Bxc4 {[%clk 0:00:42]} 21. Nfd2 {[%clk 0:02:25]}  Bd5 {[%clk 0:00:37]} 22. Rb1 {[%clk 0:02:09]}  Qd7 {[%clk 0:00:37]} 23. Ba1 {[%clk 0:02:08]}  Qa4 {[%clk 0:00:34]} 24. Nxd4 {[%clk 0:02:05]}  Qxd1 {[%clk 0:00:28]} 25. Rbxd1 {[%clk 0:02:06]}  Ng6 {[%clk 0:00:05]} 26. Nc2 {[%clk 0:02:04]}  Rfc8 {[%clk 0:00:05]} 27. Nb4 {[%clk 0:02:04]}  Ba8 {[%clk 0:00:02]} 28. Nc4 {[%clk 0:02:01]}  Rxc5 {[%clk 0:00:01]} 29. Nxa6 {[%clk 0:02:01]}  Rbc8 {[%clk 0:00:00]} 30. Nxc5 {[%clk 0:02:01]} 1-0


[Site "https://www.chess.com"]

[Event "Titled Tuesday Blitz August 08 Late 2023"]
[White "Hristodoulou, Panagiotis"]
[Black "Arabidze, Meri"]
[WhiteFideId "4214340"]
[BlackFideId "13604040"]
[WhiteElo "2482"]
[BlackElo "2615"]
[Result "1-0"]
[Round "6"]
[TimeControl "180+1"]
[Date "2023.08.08"]
[WhiteClock "0:00:39"]
[BlackClock "0:00:03"]
[Board "67"]

1. d4 {[%clk 0:03:00]}  d5 {[%clk 0:02:59]} 2. Nc3 {[%clk 0:02:59]}  e6 {[%clk 0:02:56]} 3. Bf4 {[%clk 0:02:59]}  Bd6 {[%clk 0:02:55]} 4. e3 {[%clk 0:02:59]}  a6 {[%clk 0:02:54]} 5. Nf3 {[%clk 0:02:59]}  Ne7 {[%clk 0:02:53]} 6. Bd3 {[%clk 0:02:59]}  Ng6 {[%clk 0:02:54]} 7. Bg3 {[%clk 0:03:00]}  Nd7 {[%clk 0:02:48]} 8. O-O {[%clk 0:02:59]}  Qe7 {[%clk 0:02:47]} 9. e4 {[%clk 0:02:59]}  Bxg3 {[%clk 0:02:47]} 10. hxg3 {[%clk 0:02:58]}  c6 {[%clk 0:02:42]} 11. Re1 {[%clk 0:02:58]}  h5 {[%clk 0:02:38]} 12. exd5 {[%clk 0:02:57]}  Ndf8 {[%clk 0:02:15]} 13. dxe6 {[%clk 0:02:51]}  Bxe6 {[%clk 0:02:16]} 14. d5 {[%clk 0:02:52]}  cxd5 {[%clk 0:02:16]} 15. Nxd5 {[%clk 0:02:52]}  Qc5 {[%clk 0:01:58]} 16. Bxg6 {[%clk 0:02:47]}  Nxg6 {[%clk 0:01:58]} 17. Qd4 {[%clk 0:02:35]}  Qxd4 {[%clk 0:01:43]} 18. Nxd4 {[%clk 0:02:36]}  O-O-O {[%clk 0:01:43]} 19. Nxe6 {[%clk 0:02:33]}  Rxd5 {[%clk 0:01:43]} 20. Nf4 {[%clk 0:02:26]}  Nxf4 {[%clk 0:01:41]} 21. gxf4 {[%clk 0:02:27]}  Rhd8 {[%clk 0:01:33]} 22. Kf1 {[%clk 0:02:24]}  h4 {[%clk 0:01:25]} 23. Re3 {[%clk 0:02:21]}  Rd2 {[%clk 0:01:13]} 24. Rc1 {[%clk 0:02:17]}  f6 {[%clk 0:01:03]} 25. Rh3 {[%clk 0:02:11]}  g5 {[%clk 0:01:00]} 26. fxg5 {[%clk 0:02:12]}  fxg5 {[%clk 0:01:01]} 27. Ke1 {[%clk 0:02:03]}  R2d5 {[%clk 0:00:56]} 28. Rd3 {[%clk 0:02:02]}  Re5+ {[%clk 0:00:48]} 29. Kd2 {[%clk 0:01:59]}  Rde8 {[%clk 0:00:48]} 30. Re3 {[%clk 0:01:59]}  Rxe3 {[%clk 0:00:47]} 31. fxe3 {[%clk 0:01:59]}  g4 {[%clk 0:00:47]} 32. Rh1 {[%clk 0:01:58]}  Rh8 {[%clk 0:00:47]} 33. Kd3 {[%clk 0:01:58]}  Kd7 {[%clk 0:00:40]} 34. Ke4 {[%clk 0:01:58]}  Ke6 {[%clk 0:00:40]} 35. Kf4 {[%clk 0:01:58]}  h3 {[%clk 0:00:40]} 36. Kxg4 {[%clk 0:01:53]}  hxg2 {[%clk 0:00:40]} 37. Rg1 {[%clk 0:01:53]}  Ke5 {[%clk 0:00:33]} 38. Kf3 {[%clk 0:01:50]}  Rh3+ {[%clk 0:00:32]} 39. Kf2 {[%clk 0:01:46]}  Ke4 {[%clk 0:00:30]} 40. Rxg2 {[%clk 0:01:46]}  Rf3+ {[%clk 0:00:30]} 41. Ke1 {[%clk 0:01:41]}  Kxe3 {[%clk 0:00:28]} 42. Rg7 {[%clk 0:01:34]}  b5 {[%clk 0:00:28]} 43. Re7+ {[%clk 0:01:31]}  Kd4 {[%clk 0:00:27]} 44. Kd2 {[%clk 0:01:32]}  Rf2+ {[%clk 0:00:25]} 45. Re2 {[%clk 0:01:32]}  Rf6 {[%clk 0:00:24]} 46. Rh2 {[%clk 0:01:32]}  Rg6 {[%clk 0:00:23]} 47. Rh4+ {[%clk 0:01:32]}  Kc5 {[%clk 0:00:23]} 48. b3 {[%clk 0:01:24]}  a5 {[%clk 0:00:20]} 49. a3 {[%clk 0:01:24]}  Rg2+ {[%clk 0:00:19]} 50. Kc3 {[%clk 0:01:24]}  Rg3+ {[%clk 0:00:19]} 51. Kb2 {[%clk 0:01:23]}  Rg5 {[%clk 0:00:20]} 52. b4+ {[%clk 0:01:22]}  axb4 {[%clk 0:00:20]} 53. axb4+ {[%clk 0:01:23]}  Kd5 {[%clk 0:00:20]} 54. Kb3 {[%clk 0:01:23]}  Rg6 {[%clk 0:00:18]} 55. Rh5+ {[%clk 0:01:23]}  Kc6 {[%clk 0:00:18]} 56. Rc5+ {[%clk 0:01:24]}  Kb6 {[%clk 0:00:19]} 57. Rd5 {[%clk 0:01:24]}  Rf6 {[%clk 0:00:18]} 58. Kc3 {[%clk 0:01:24]}  Rf3+ {[%clk 0:00:17]} 59. Rd3 {[%clk 0:01:24]}  Rf6 {[%clk 0:00:17]} 60. Re3 {[%clk 0:01:24]}  Rg6 {[%clk 0:00:17]} 61. Kd3 {[%clk 0:01:22]}  Rd6+ {[%clk 0:00:17]} 62. Ke4 {[%clk 0:01:21]}  Rh6 {[%clk 0:00:18]} 63. c3 {[%clk 0:01:21]}  Rh4+ {[%clk 0:00:17]} 64. Kd5 {[%clk 0:01:21]}  Rc4 {[%clk 0:00:15]} 65. Rh3 {[%clk 0:01:16]}  Kb7 {[%clk 0:00:15]} 66. Kd6 {[%clk 0:00:59]}  Kb6 {[%clk 0:00:15]} 67. Rg3 {[%clk 0:00:58]}  Rc6+ {[%clk 0:00:14]} 68. Kd7 {[%clk 0:00:56]}  Rc4 {[%clk 0:00:15]} 69. Rd3 {[%clk 0:00:51]}  Kb7 {[%clk 0:00:14]} 70. Ke6 {[%clk 0:00:51]}  Kb6 {[%clk 0:00:13]} 71. Kd6 {[%clk 0:00:50]}  Rc6+ {[%clk 0:00:12]} 72. Kd7 {[%clk 0:00:48]}  Rc4 {[%clk 0:00:13]} 73. Rd6+ {[%clk 0:00:46]}  Kb7 {[%clk 0:00:13]} 74. Rd5 {[%clk 0:00:47]}  Kb6 {[%clk 0:00:13]} 75. Rd3 {[%clk 0:00:40]}  Rc7+ {[%clk 0:00:13]} 76. Ke6 {[%clk 0:00:40]}  Rc6+ {[%clk 0:00:14]} 77. Rd6 {[%clk 0:00:40]}  Kc7 {[%clk 0:00:12]} 78. Rxc6+ {[%clk 0:00:39]}  Kxc6 {[%clk 0:00:13]} 79. Ke5 {[%clk 0:00:38]}  Kb6 {[%clk 0:00:05]} 80. Kd6 {[%clk 0:00:38]}  Kb7 {[%clk 0:00:04]} 81. Kc5 {[%clk 0:00:39]}  Ka6 {[%clk 0:00:03]} 82. Kc6 {[%clk 0:00:39]} 1-0


[Site "https://www.chess.com"]